[Event "Polish Ekstraliga 2024"]
[Site "Walbrzych"]
[Date "2024.10.07"]
[Round "1.6"]
[White "Maltsevskaya, Aleksandra"]
[Black "Antolak, Julia"]
[Result "1/2-1/2"]
[ECO "A29"]
[WhiteElo "2368"]
[BlackElo "2281"]
[Annotator "RC"]
[PlyCount "88"]
[EventDate "2024.10.05"]
[EventType "team-tourn"]
[EventCountry "POL"]
[SourceTitle "playchess.com"]
[Source "ChessBase"]
[SourceQuality "1"]
[WhiteTeam "Pegow"]
[BlackTeam "Gliwice"]
[TimeControl "40/5400+30:1800+30"]

1. c4 {[%emt 0:00:04]} e5 {[%emt 0:00:42]} 2. Nc3 {[%emt 0:00:07]} Nf6 {[%emt 0:00:05]} 3. Nf3 {[%emt 0:00:06]} Nc6 {[%emt 0:00:06]} 4. g3 {[%emt 0:00:06]} d5 {[%emt 0:01:11]} 5. cxd5 {[%emt 0:00:07]} Nxd5 {[%emt 0:00:05]} 6. Bg2 {[%emt 0:00:42]} Nb6 {[%emt 0:00:53]} 7. O-O {[%emt 0:00:09]} Be7 {[%emt 0:01:54]} 8. a3 {[%emt 0:00:24]} O-O {[%emt 0:08:19]} 9. b4 {[%emt 0:00:30]} Re8 {[%emt 0:05:51]} 10. Rb1 {[%emt 0:02:31]} Bf8 {[%emt 0:03:25]} 11. d3 {[%emt 0:00:08]} a5 {[%emt 0:04:07]} 12. b5 {[%emt 0:04:34]} Nd4 {[%emt 0:00:34]} 13. Nd2 {[%emt 0:09:31]} a4 {[%emt 0:05:04]} 14. e3 {[%emt 0:26:48]} Ne6 {[%emt 0:02:19]} 15. Nf3 {[%emt 0:00:22]} Nc5 {[%emt 0:05:23]} 16. d4 {[%emt 0:00:05]} exd4 {[%emt 0:00:20]} 17. Nxd4 {[%emt 0:00:07]} Qf6 {[%emt 0:03:53]} 18. Bb2 {[%emt 0:18:46]} Qg6 {[%emt 0:10:46]} 19. e4 {[%emt 0:05:34]} Rd8 {[%emt 0:07:09]} 20. Nd5 {[%emt 0:00:11]} Nxd5 {[%emt 0:02:00]} 21. exd5 {[%emt 0:00:04]} Bf5 {[%emt 0:03:04]} 22. Nxf5 {[%emt 0:08:05]} Qxf5 {[%emt 0:00:05]} 23. Qe2 {[%emt 0:04:54]} Re8 {[%emt 0:03:10]} 24. Qc4 {[%emt 0:00:07]} Rad8 {[%emt 0:00:14]} 25. b6 {[%emt 0:03:01]} cxb6 {[%emt 0:01:29]} 26. Rbd1 {[%emt 0:07:13]} Ne4 {[%emt 0:06:57]} 27. Qxa4 {[%emt 0:03:19]} Bc5 {[%emt 0:00:46]} 28. Bxe4 {[%emt 0:03:32]} Rxe4 {[%emt 0:05:50]} 29. Qb3 {[%emt 0:00:08]} Re2 {[%emt 0:07:28]} 30. Bd4 {[%emt 0:00:09]} h5 {[%emt 0:01:47]} 31. Bxc5 {[%emt 0:00:21]} bxc5 {[%emt 0:00:01]} 32. Qxb7 {[%emt 0:01:41]} Qf3 {[%emt 0:01:18]} 33. Rde1 {[%emt 0:02:47]} h4 {[%emt 0:03:50]} 34. gxh4 {[%emt 0:00:41]} Qg4+ {[%emt 0:04:59]} 35. Kh1 {[%emt 0:00:03]} Qf3+ {[%emt 0:00:02]} 36. Kg1 {[%emt 0:00:04]} Qg4+ {[%emt 0:00:03]} 37. Kh1 {[%emt 0:00:03]} Rde8 {[%emt 0:02:15]} 38. Rxe2 {[%emt 0:00:46]} Qxe2 {[%emt 0:01:01]} 39. Qb1 {[%emt 0:01:06]} Qf3+ {[%emt 0:00:37]} 40. Kg1 {[%emt 0:00:00]} Qg4+ {[%emt 0:00:00]} 41. Kh1 {[%emt 0:00:09]} Qf3+ {[%emt 0:07:44]} 42. Kg1 {[%emt 0:00:10]} Re4 {[%emt 0:12:49]} 43. h3 {[%emt 0:00:14]} Rg4+ {[%emt 0:04:03]} 44. hxg4 {[%emt 0:00:08]} Qxg4+ {[%emt 0:00:02]} 1/2-1/2

[Event "Polish Ekstraliga 2024"]
[Site "Walbrzych"]
[Date "2024.10.07"]
[Round "1.7"]
[White "Harikrishna, Pentala"]
[Black "Ponomariov, Ruslan"]
[Result "1/2-1/2"]
[ECO "E53"]
[WhiteElo "2688"]
[BlackElo "2655"]
[Annotator "TA"]
[PlyCount "79"]
[EventDate "2024.10.05"]
[EventType "team-tourn"]
[EventCountry "POL"]
[SourceTitle "playchess.com"]
[Source "ChessBase"]
[SourceQuality "1"]
[WhiteTeam "Polonia Wroclaw"]
[BlackTeam "Katowice"]
[TimeControl "40/5400+30:1800+30"]

{[%evp 12,79,14,0,4,11,16,0,20,16,24,15,13,6,20,19,36,6,5,0,0,0,0,0,1,0,0,0,7,16,15,11,18,17,21,21,19,15,13,22,12,12,12,10,8,0,0,0,0,0,0,0,0,0,0,0,0,0,0,0,0,0,0,0,0,0,0,0,0,0]} 1. d4 {[%emt 0:00:10]} Nf6 {[%emt 0:00:13]} 2. c4 {[%emt 0:00:06]} e6 {[%emt 0:00:08]} 3. Nc3 {[%emt 0:00:35]} Bb4 {[%emt 0:00:15]} 4. e3 {[%emt 0:00:21]} O-O {[%emt 0:01:36]} 5. Bd3 {[%emt 0:00:18]} c5 {[%emt 0:01:30]} 6. Nf3 {[%emt 0:01:25]} d5 {[%emt 0:01:47]} 7. cxd5 {[%emt 0:00:12]} exd5 {[%emt 0:01:16]} 8. dxc5 {[%emt 0:00:10]} Bg4 {[%emt 0:13:23]} 9. O-O {[%emt 0:14:55]} Bxc5 {[%emt 0:02:36]} 10. h3 {[%emt 0:04:29]} Bh5 {[%emt 0:03:00]} 11. b3 {[%emt 0:01:22]} Nc6 {[%emt 0:02:44]} 12. Bb2 {[%emt 0:02:43]} a6 {[%emt 0:03:51]} 13. Be2 {[%emt 0:07:52]} Bg6 {[%emt 0:10:19]} 14. Nh4 {[%emt 0:02:57]} d4 {[%emt 0:01:53] The position is equal.} 15. exd4 {[%emt 0:06:19]} Bxd4 {[%emt 0:04:59]} 16. Nxg6 {[%emt 0:03:17]} hxg6 {[%emt 0:01:03]} 17. Bf3 {[%emt 0:00:39]} Rc8 {[%emt 0:01:25]} 18. Rc1 {[%emt 0:00:22][%cal Ba1c1,Bc1c2,Bc2e2][%mdl 32]} (18. Qd2 {is interesting.} Qd6 19. Na4 Rfd8 20. Rac1) 18... Re8 {[%emt 0:11:18]} 19. Rc2 {[%emt 0:07:29] Hoping for Rd2.} Be5 {[%emt 0:04:10]} 20. Qxd8 {[%emt 0:01:53]} Rexd8 {[%emt 0:00:06]} 21. Re2 {[%emt 0:04:35]} b5 {[%emt 0:04:45][%cal Bb7b5,Bb5b4][%mdl 32]} 22. Bxc6 {[%emt 0:05:37]} Bxc3 {[%emt 0:00:10]} 23. Bb7 {[%emt 0:01:44] This pair of bishops is nice.} Rc7 {[%emt 0:02:09]} 24. Bxc3 {[%emt 0:02:30]} Rxb7 {[%emt 0:00:31]} 25. Ba5 {[%emt 0:00:17]} Rd5 {[%emt 0:02:29] [#] Strongly threatening ...b4.} 26. Rc1 {[%emt 0:01:57]} b4 $1 {[%emt 0:02:00]} 27. Bc7 {[%emt 0:01:45]} g5 {[%emt 0:00:51]} 28. Rc4 {[%emt 0:01:58]} Kh7 {[%emt 0:03:32]} 29. Kh2 {[%emt 0:01:33]} a5 {[%emt 0:07:51]} 30. Rec2 {[%emt 0:06:43]} Nd7 {[%emt 0:03:37]} 31. Rc6 {[%emt 0:04:43]} Ra7 {[%emt 0:01:21]} 32. Re2 {[%emt 0:03:43]} a4 {[%emt 0:02:05]} 33. Rd6 {[%emt 0:03:54]} Nf6 {[%emt 0:01:00]} 34. Bb6 {[%emt 0:02:41] [#] Threatens to win with Rxd5.} Ra6 {[%emt 0:04:04]} 35. Rxd5 {[%emt 0:00:09]} Nxd5 {[%emt 0:00:01]} 36. Bd4 {[%emt 0:00:22]} f6 {[%emt 0:01:02]} 37. Rd2 {[%emt 0:01:23]} axb3 {[%emt 0:00:56]} 38. axb3 {[%emt 0:00:06]} Ra3 {[%emt 0:00:45]} 39. Bc5 {[%emt 0:02:10]} Nf4 {[%emt 0:00:37]} 40. Bxb4 {[%emt 0:00:00] An uneventful encounter.   Weighted Error Value: White=0.03 (flawless) /Black=0.02 (flawless) .  Inaccurate:     	White=1     	---        OK:         	White=15    	Black=15     Best:        	---       	Black=1      Strong:       	---       	Black=1} 1/2-1/2

[Event "Polish Ekstraliga 2024"]
[Site "Walbrzych"]
[Date "2024.10.07"]
[Round "1.8"]
[White "Navara, David"]
[Black "Grandelius, Nils"]
[Result "1-0"]
[ECO "C45"]
[WhiteElo "2683"]
[BlackElo "2650"]
[Annotator "TA"]
[PlyCount "101"]
[EventDate "2024.10.05"]
[EventType "team-tourn"]
[EventCountry "POL"]
[SourceTitle "playchess.com"]
[Source "ChessBase"]
[SourceQuality "1"]
[WhiteTeam "Katowice"]
[BlackTeam "Polonia Wroclaw"]
[TimeControl "40/5400+30:1800+30"]

{[%evp 23,101,-15,-23,-12,6,-2,-32,-79,12,0,0,-22,-10,-22,-35,-14,0,0,15,18,14,0,13,0,7,0,19,0,11,0,0,0,0,0,0,0,0,0,0,0,0,0,79,80,108,84,120,20,260,333,406,396,467,372,466,429,459,439,462,451,394,362,538,530,1051,933,1169,1156,1099,1079,1600,1520,9166,8944,6772,6453,29977,29978,29967,11068]} 1. e4 {[%emt 0:00:03]} e5 {[%emt 0:00:36]} 2. Nf3 {[%emt 0:00:04]} Nc6 {[%emt 0:00:09]} 3. d4 {[%emt 0:00:04]} exd4 {[%emt 0:00:28]} 4. Nxd4 {[%emt 0:00:04]} Bc5 {[%emt 0:00:41]} 5. Nb3 {[%emt 0:00:05]} Bb6 {[%emt 0:00:07]} 6. Nc3 {[%emt 0:00:05]} d6 {[%emt 0:01:26]} 7. Qe2 {[%emt 0:05:26]} a5 {[%emt 0:02:13] now supersedes 7...Nge7. C45: Scotch Game.} 8. a4 {[%emt 0:11:21]} Nb4 {[%emt 0:03:49]} 9. Nb5 $5 {[%emt 0:05:36][%mdl 4] A promising side line.} Nf6 {[%emt 0:20:23]} 10. c3 {[%emt 0:05:45]} Nc6 {[%emt 0:01:15]} 11. Be3 $146 {[%emt 0:04:05]} ({Predecessor:} 11. Bg5 h6 12. Bh4 Qe7 13. f3 Be6 14. N3d4 Nxd4 15. Nxd4 Bxd4 16. cxd4 d5 17. e5 {0-1 Belenkaya,D (2341)-Injac,T (2370) FIDE World Cup (Women) 2021 (1.2)}) 11... Bxe3 {[%emt 0:02:36]} 12. Qxe3 {[%emt 0:00:10]} O-O {[%emt 0:08:13]} 13. O-O-O {[%emt 0:13:53]} Be6 {[%emt 0:08:39]} 14. N3d4 {[%emt 0:03:23]} Nxd4 {[%emt 0:00:23]} 15. Rxd4 {[%emt 0:08:08]} (15. Nxd4 $15 {was preferrable.} Bd7 16. Nb5) 15... d5 {[%emt 0:09:36]} (15... Nd7 $17) 16. exd5 {[%emt 0:07:45]} Nxd5 {[%emt 0:01:18]} 17. Qd2 {[%emt 0:05:14]} (17. Qe5 $5 c6 18. Bc4 $11) 17... c6 {[%emt 0:05:23]} 18. Bc4 {[%emt 0:00:11]} Qb8 {[%emt 0:05:43]} 19. Na3 {[%emt 0:00:36]} Re8 {[%emt 0:00:54]} 20. g3 {[%emt 0:02:47]} Qc7 {[%emt 0:07:59]} 21. Re1 {[%emt 0:04:51]} h6 {[%emt 0:00:28]} 22. Nc2 {[%emt 0:02:55]} Rad8 {[%emt 0:03:56]} 23. Rd1 {[%emt 0:06:56]} Rb8 {[%emt 0:02:47]} 24. Re1 {[%emt 0:03:41]} Rbd8 {[%emt 0:00:13]} 25. h4 {[%emt 0:02:13]} Qc8 {[%emt 0:03:30]} 26. Bxd5 {[%emt 0:04:27]} Rxd5 {[%emt 0:01:05]} 27. Rxd5 {[%emt 0:00:09]} Bxd5 {[%emt 0:00:27]} 28. Rxe8+ {[%emt 0:00:13]} Qxe8 {[%emt 0:00:02]} 29. Qe3 {[%emt 0:01:35]} Qd7 {[%emt 0:06:46]} 30. Qd3 {[%emt 0:01:25]} Qg4 {[%emt 0:02:02]} 31. Ne3 {[%emt 0:01:02]} Qf3 {[%emt 0:00:47]} 32. Qf5 {[%emt 0:01:13]} Qxf5 {[%emt 0:01:56]} (32... Qh1+ $11 {keeps the balance.} 33. Kd2 g6) 33. Nxf5 $16 {[%emt 0:00:07]} Kf8 {[%emt 0:00:05]} 34. b4 $1 {[%emt 0:00:54]} b6 {[%emt 0:00:31]} 35. Kb2 {[%emt 0:01:00]} ({White should try} 35. Nd6 $1 $16 {[%cal Rd6c8] Nc8 is the strong threat.} Be6 36. bxa5 bxa5 37. Kc2) 35... h5 $2 {[%emt 0:00:51] [#]} (35... c5 $1 $11 {and Black is okay.}) 36. Nd6 $1 $18 {[%emt 0:00:24]} c5 {[%emt 0:00:24] [#]} 37. Nc8 $1 {[%emt 0:00:23]} cxb4 {[%emt 0:00:32]} 38. cxb4 {[%emt 0:00:08]} ({Inferior is} 38. Nxb6 bxc3+ 39. Kxc3 Bc6 $11) 38... axb4 {[%emt 0:00:33]} 39. Nxb6 {[%emt 0:00:06]} Bb7 {[%emt 0:00:37]} 40. Kb3 {[%emt 0:00:00]} Ke7 {[%emt 0:00:00]} 41. Kxb4 {[%emt 0:01:17]} Kd6 {[%emt 0:03:25]} 42. Kc4 {[%emt 0:03:44]} f6 {[%emt 0:04:54]} (42... Ke5 {was called for.} 43. Nd7+ Kd6) 43. Kd4 $18 {[%emt 0:03:43]} g5 {[%emt 0:00:20]} 44. a5 {[%emt 0:02:19]} Ke6 {[%emt 0:00:48]} 45. Nc4 {[%emt 0:01:06]} Ba6 {[%emt 0:01:07]} 46. Ne3 {[%emt 0:00:14]} Be2 {[%emt 0:00:30]} 47. f4 {[%emt 0:03:27]} gxh4 {[%emt 0:00:12]} 48. gxh4 {[%emt 0:00:07]} Kd6 {[%emt 0:00:28]} 49. Nd5 {[%emt 0:02:19]} Bf3 {[%emt 0:01:44]} 50. Nxf6 {[%emt 0:00:20]} Ke6 {[%emt 0:00:05]} 51. Ke3 {[%emt 0:00:10]} 1-0

[Event "Polish Ekstraliga 2024"]
[Site "Walbrzych"]
[Date "2024.10.07"]
[Round "1.9"]
[White "Bartel, Mateusz"]
[Black "Piorun, Kacper"]
[Result "1-0"]
[ECO "C45"]
[WhiteElo "2608"]
[BlackElo "2581"]
[Annotator "TA"]
[PlyCount "61"]
[EventDate "2024.10.05"]
[EventType "team-tourn"]
[EventCountry "POL"]
[SourceTitle "playchess.com"]
[Source "ChessBase"]
[SourceQuality "1"]
[WhiteTeam "Polonia Wroclaw"]
[BlackTeam "Katowice"]
[TimeControl "40/5400+30:1800+30"]

{[%evp 9,61,-9,0,-5,0,0,0,13,7,0,0,14,41,32,39,41,73,69,53,48,75,48,33,42,46,41,39,33,30,14,52,20,22,11,19,17,7,15,16,-24,14,22,172,172,191,229,446,471,498,495,516,504,813,793]} 1. e4 {[%emt 0:00:04]} e5 {[%emt 0:00:06]} 2. Nf3 {[%emt 0:00:05]} Nc6 {[%emt 0:00:06]} 3. d4 {[%emt 0:00:04]} exd4 {[%emt 0:00:20]} 4. Nxd4 {[%emt 0:00:06]} Bc5 {[%emt 0:00:23]} 5. Nb3 {[%emt 0:00:07]} Bb6 {[%emt 0:03:37]} 6. Qe2 {[%emt 0:00:04]} a5 {[%emt 0:00:08]} 7. a4 {[%emt 0:00:04]} d6 {[%emt 0:00:29]} 8. Be3 {[%emt 0:00:07] The position is equal.} Bxe3 {[%emt 0:00:34]} 9. Qxe3 {[%emt 0:00:02]} Nb4 {[%emt 0:05:26]} 10. Na3 {[%emt 0:00:06]} Ne7 {[%emt 0:01:43]} 11. Bb5+ {[%emt 0:12:26]} c6 {[%emt 0:01:04]} 12. Be2 {[%emt 0:00:33]} Be6 {[%emt 0:20:47]} 13. Nd4 {[%emt 0:05:31]} O-O {[%emt 0:02:43]} 14. O-O {[%emt 0:08:00]} d5 {[%emt 0:08:08]} 15. Rad1 {[%emt 0:01:18] White is more active.} Bd7 {[%emt 0:01:50]} 16. c3 {[%emt 0:05:24]} Na6 {[%emt 0:00:20]} 17. Nb3 {[%emt 0:00:12]} b6 {[%emt 0:03:53][%cal Bb7b6,Bb6b5][%mdl 32]} 18. Bxa6 {[%emt 0:12:07]} Rxa6 {[%emt 0:00:11]} 19. c4 {[%emt 0:00:02]} dxc4 {[%emt 0:11:52]} 20. Nxc4 {[%emt 0:02:26]} Qc7 $1 {[%emt 0:00:09]} 21. Nd4 $36 {[%emt 0:11:33][%mdl 2048] Black is under pressure.} b5 {[%emt 0:01:29]} 22. Qg5 {[%emt 0:09:33][%cal Ra4b5]} Ng6 {[%emt 0:05:03]} 23. Ne3 {[%emt 0:08:03]} bxa4 {[%emt 0:01:49]} 24. f4 {[%emt 0:00:05][%cal Bf2f4,Bf4f5,Bf5g6,Bg6f7][%mdl 32] Strongly threatening f5.} Re8 {[%emt 0:03:54]} 25. e5 {[%emt 0:02:21]} Rb6 {[%emt 0:07:57] [#] Loses the game.} (25... Raa8 $11 {and Black is okay.}) 26. f5 $1 $18 {[%emt 0:03:55]} h6 {[%emt 0:08:47]} (26... Qxe5 $2 {loses.} 27. Nc4 Qc7 28. Nxb6 (28. fxg6 hxg6 29. Nxb6 Qxb6 $18) 28... Qxb6 29. fxg6 hxg6 30. Rf2 $18) (26... Nxe5 $2 27. f6 Ng6 (27... Rxb2 28. Qxg7#) 28. Ndf5 Bxf5 (28... Rxb2 29. Nh6+ gxh6 30. Qxh6) 29. Nxf5 $18) 27. Qg3 {[%emt 0:07:24]} Qxe5 $2 {[%emt 0:04:47]} (27... Nf8 28. Nc4 Rb4) 28. fxg6 {[%emt 0:00:22] White is clearly winning.} Qxe3+ {[%emt 0:00:24]} 29. Qxe3 {[%emt 0:00:07]} Rxe3 {[%emt 0:00:02]} 30. Nf5 {[%emt 0:00:37]} ({Weaker is} 30. gxf7+ Kf8 $16) 30... Re6 {[%emt 0:02:38]} (30... Re5 $142 31. Rxd7 fxg6) 31. gxf7+ {[%emt 0:01:13] Weighted Error Value: White=0.07 (flawless) /Black=0.32.  Mistake:       	---       	Black=3      Inaccurate:     	White=3     	Black=5      OK:         	White=7     	Black=7      Best:        	White=3     	Black=1      Strong:       	White=1     	Black=1} 1-0

[Event "Polish Ekstraliga 2024"]
[Site "Walbrzych"]
[Date "2024.10.07"]
[Round "1.10"]
[White "Klimkowski, Jan"]
[Black "Mastrovasilis, Dimitrios"]
[Result "1-0"]
[ECO "C55"]
[WhiteElo "2477"]
[BlackElo "2532"]
[Annotator "TA"]
[PlyCount "91"]
[EventDate "2024.10.05"]
[EventType "team-tourn"]
[EventCountry "POL"]
[SourceTitle "playchess.com"]
[Source "ChessBase"]
[SourceQuality "1"]
[WhiteTeam "Katowice"]
[BlackTeam "Polonia Wroclaw"]
[TimeControl "40/5400+30:1800+30"]

{[%evp 23,91,77,86,92,93,102,99,98,125,116,147,141,137,141,142,127,150,148,131,132,136,141,262,172,161,162,230,188,214,140,128,139,134,126,141,146,143,146,139,142,149,149,135,102,99,83,184,195,198,209,305,305,479,497,559,544,564,557,520,510,758,568,1768,1579,3542,3029,1879,2030,1631,1777]} 1. e4 {[%emt 0:00:05]} e5 {[%emt 0:00:07]} 2. Nf3 {[%emt 0:00:05]} Nc6 {[%emt 0:00:08]} 3. Bc4 {[%emt 0:00:09]} Nf6 {[%emt 0:00:21]} 4. d3 {[%emt 0:00:09]} d5 {[%emt 0:05:39]} 5. exd5 {[%emt 0:00:25]} Nxd5 {[%emt 0:00:09]} 6. O-O {[%emt 0:00:30]} Be7 {[%emt 0:00:34]} 7. Re1 {[%emt 0:00:52]} Nb6 {[%emt 0:02:44]} 8. Bb3 {[%emt 0:10:12]} Bg4 {[%emt 0:15:51][%cal Bc8g4,Bg4h5,Bh5g6][%mdl 32]} 9. h3 {[%emt 0:03:07]} Bh5 {[%emt 0:03:42]} 10. g4 {[%emt 0:07:45]} Bg6 {[%emt 0:00:21]} 11. Nxe5 {[%emt 0:00:25]} Nxe5 {[%emt 0:00:21]} 12. Rxe5 {[%emt 0:00:13]} O-O {[%emt 0:01:07]} 13. f4 {[%emt 0:05:32] White is more active.} Bd6 {[%emt 0:03:38]} 14. Re2 {[%emt 0:03:27]} Qh4 {[%emt 0:05:12][%cal Oa7a5]} 15. Kg2 {[%emt 0:01:24] White is better.} (15. f5 Rae8 16. Nc3 (16. fxg6 $2 Qg3+ 17. Kf1 Qf3+ 18. Ke1 Qh1+ 19. Kf2 Qxd1 $19) 16... Qg3+ 17. Kf1 Qxh3+ 18. Rg2 Kh8 $15) 15... Rae8 {[%emt 0:06:20]} 16. Nc3 {[%emt 0:03:50]} h5 {[%emt 0:04:03] [#]} 17. Rxe8 $1 {[%emt 0:04:00]} Rxe8 {[%emt 0:00:14]} 18. Bd2 {[%emt 0:01:28] Dodges Re1} hxg4 {[%emt 0:22:09]} 19. hxg4 {[%emt 0:19:56]} Nd7 {[%emt 0:00:50][%cal Bb6d7,Bd7f6,Bf6h5][%mdl 32]} 20. Qf3 {[%emt 0:07:53][%cal Oa1h1] aiming for Rh1!} Nf6 {[%emt 0:02:10] [#]} 21. g5 {[%emt 0:01:57]} Nh5 {[%emt 0:01:47][%cal Rd6f4]} 22. Rf1 {[%emt 0:01:05]} b5 {[%emt 0:07:54]} (22... a6 $16 23. Bd5 (23. Qxb7 $2 {too greedy.} Qg3+ 24. Kh1 Nxf4 $19) 23... c6) 23. Qh3 {[%emt 0:10:19]} Qxh3+ {[%emt 0:10:57]} 24. Kxh3 {[%emt 0:00:03][%cal Of4f5] f5! is the strong threat.} Kf8 {[%emt 0:01:08]} (24... Bf5+ {was worth a try.} 25. Kg2 (25. Kh4 g6 $14) 25... g6) 25. Kg4 {[%emt 0:01:56]} b4 {[%emt 0:02:14] [#]} 26. Ne4 {[%emt 0:04:13][%mdl 512]} f5+ {[%emt 0:00:59]} 27. gxf6 {[%emt 0:00:04]} Nxf6+ {[%emt 0:01:26]} 28. Nxf6 {[%emt 0:00:05]} gxf6 {[%emt 0:00:05]} 29. f5 {[%emt 0:02:16]} Bf7 {[%emt 0:00:12]} 30. Re1 {[%emt 0:01:03]} Rxe1 {[%emt 0:01:38]} 31. Bxe1 $16 {[%emt 0:00:04][%mdl 4096] Endgame. Hoping for Bxf7. KBB-KBB} Be8 {[%emt 0:00:23]} 32. Bf2 {[%emt 0:04:00]} a5 {[%emt 0:00:25]} 33. Bd5 {[%emt 0:00:27]} Ba4 {[%emt 0:01:02]} 34. c4 {[%emt 0:02:18][%cal Bc2c4,Bc4c5][%mdl 32]} Bd1+ {[%emt 0:00:41]} (34... bxc3 $16 {might work better.} 35. bxc3 Bd1+ 36. Kh3 a4) 35. Bf3 $18 {[%emt 0:00:09]} Bc2 {[%emt 0:00:38]} 36. c5 {[%emt 0:00:30]} Bh2 {[%emt 0:00:49]} (36... Be7 $142 37. d4 Ke8) 37. d4 {[%emt 0:00:36] Be3 would now be deadly.} Bd3 {[%emt 0:00:24]} (37... Ba4 {was necessary.} 38. Be3 c6) 38. Be3 {[%emt 0:00:48] White is clearly winning.} Bf1 {[%emt 0:00:19]} 39. Bc6 {[%emt 0:02:45]} Ke7 {[%emt 0:00:38]} 40. Kf3 {[%emt 0:00:00]} Bh3 {[%emt 0:00:00]} 41. Be4 {[%emt 0:01:28]} Kd7 {[%emt 0:05:31]} 42. Bd3 {[%emt 0:00:27]} c6 {[%emt 0:00:59]} 43. Bf2 {[%emt 0:00:28]} Kd8 {[%emt 0:14:50]} 44. b3 {[%emt 0:00:22]} Kd7 {[%emt 0:00:44]} 45. Bh4 {[%emt 0:00:08]} Ke7 {[%emt 0:00:39]} 46. Bg3 {[%emt 0:00:05] Weighted Error Value: White=0.17 (very precise) /Black=0.29 (precise) .  Mistake:       	---       	Black=5      Inaccurate:     	White=2     	Black=3      OK:         	White=12    	Black=11     Best:        	White=5     	Black=4      Strong:       	White=1     	---} 1-0